bitfinex/quotes_ETHUSD_20250724
["timestamp","ask_amount","ask_price","bid_price","bid_amount"]
[1753343243180,3.34626419,3576.2,3576.0,0.4709]
[1753343243383,7.74026419,3576.2,3575.8,0.8273]
[1753343243526,7.74026419,3576.2,3576.1,0.5109]
[1753343244828,7.74026419,3576.2,3576.1,0.04]
[1753343245466,3.34626419,3576.2,3576.1,1.3235]
[1753343245647,7.73726419,3576.2,3576.1,1.3235]
[1753343245833,3.34626419,3576.2,3576.1,1.3235]
[1753343246028,0.55,3576.2,3576.1,1.3235]
[1753343246244,2.79576311,3576.9,3576.1,1.3235]
[1753343246245,0.7807,3577.5,3576.1,1.3235]
[1753343246435,2.79552448,3577.2,3576.3,0.7755]
[1753343246639,2.79556672,3577.1,3576.4,4.04250781]
[1753343246965,3.0,3577.2,3576.6,0.7755]
[1753343247131,0.41570878,3577.2,3576.7,3.26671312]
[1753343247332,5.79534248,3577.4,3576.7,2.79581312]
[1753343247533,3.0,3577.2,3576.8,0.4709]
[1753343247732,4.396,3577.9,3576.8,0.4709]
[1753343247969,0.15584778,3577.8,3576.8,0.4709]
[1753343248139,2.79536017,3577.4,3576.8,0.4709]
[1753343249261,2.79536017,3577.4,3576.9,0.8041]
[1753343249262,2.79534418,3577.4,3576.9,0.8041]
[1753343249563,2.79534418,3577.4,3577.0,0.4709]
[1753343249935,0.55,3577.5,3577.0,0.4709]
[1753343250136,3.34527686,3577.5,3577.0,0.4709]
[1753343250943,2.79534575,3577.4,3577.0,0.4709]
[1753343251148,2.79548297,3577.2,3577.0,0.4709]
[1753343251472,2.79542251,3577.3,3577.1,0.4709]
[1753343251643,2.79542251,3577.3,3576.9,0.8041]
[1753343251848,2.79542251,3577.3,3577.2,0.4709]
[1753343252377,2.79535458,3577.4,3577.2,0.4709]
[1753343252584,2.7952609,3577.5,3577.3,0.4709]
[1753343252751,0.55,3577.7,3577.4,0.4709]
[1753343252752,0.55,3577.6,3577.4,0.4709]
[1753343252953,0.14,3577.1,3576.9,0.8041]
[1753343253154,2.79470624,3578.2,3577.3,2.79535173]
[1753343253377,0.14,3577.6,3577.4,2.79527181]
[1753343253652,0.14,3578.0,3577.6,3.55861681]
[1753343253874,0.14,3578.0,3577.7,0.4709]
[1753343255652,0.14,3578.0,3577.8,0.7647]
[1753343255886,0.14,3578.0,3577.9,0.4709]
[1753343257461,0.14,3578.0,3577.9,3.26583557]
[1753343257706,3.34426787,3578.8,3577.9,4.8609]
[1753343257875,0.55,3578.8,3577.9,4.39]
[1753343258211,2.79463774,3578.3,3578.0,0.4689]
[1753343258401,2.79463774,3578.3,3577.9,4.39]
[1753343258597,2.79463774,3578.3,3578.1,0.4689]
[1753343258785,2.79470124,3578.2,3578.1,4.389]
[1753343258988,2.79478227,3578.1,3577.9,0.4699]
[1753343259187,2.79472776,3578.2,3578.0,4.389]
[1753343259800,2.79460719,3578.4,3578.0,4.389]
[1753343259999,2.79467842,3578.3,3578.0,4.389]
[1753343260204,0.55,3578.7,3578.1,0.4689]
[1753343260205,0.55,3578.6,3578.1,0.4689]
[1753343260376,0.55,3578.6,3578.0,7.1837975]
[1753343260377,0.55,3578.6,3578.2,0.4689]
[1753343260777,0.55,3578.6,3578.3,1.276]
[1753343260984,0.55,3578.6,3578.3,3.6016771]
[1753343261207,0.55,3578.6,3578.4,0.4689]
[1753343261378,0.55,3578.6,3578.3,3.6016771]
[1753343261587,0.55,3578.6,3578.5,0.4689]
[1753343261905,0.04,3578.9,3578.5,0.4689]
[1753343262091,0.04,3578.9,3578.6,4.8579]
[1753343262415,0.04,3578.9,3578.6,7.65227679]
[1753343262584,0.04,3578.9,3578.7,0.4689]
[1753343263093,0.55,3578.6,3578.3,0.8071]
[1753343263298,0.55,3578.6,3578.3,1.276]
[1753343263503,0.55,3578.7,3578.4,4.389]
[1753343263793,0.55,3578.7,3578.5,4.389]
[1753343263998,0.55,3578.8,3578.5,4.389]
[1753343264195,0.55,3578.6,3578.5,4.8579]
[1753343264773,0.55,3578.6,3578.3,0.8071]
[1753343264980,0.55,3578.6,3578.3,1.276]
[1753343265376,3.34425676,3578.8,3578.3,1.276]
[1753343265706,3.34428269,3578.8,3578.4,4.8579]
[1753343266680,0.55,3578.6,3578.5,0.4689]
[1753343266877,0.55,3578.8,3578.5,0.4689]
[1753343267406,0.55,3578.8,3578.6,0.4689]
[1753343267712,0.04,3578.9,3578.7,0.4689]
[1753343268007,0.59,3578.9,3578.8,4.8579]
[1753343268173,0.73,3578.9,3578.8,4.389]
[1753343268376,0.04,3578.9,3578.8,8.4244327]
[1753343271802,0.04,3578.9,3578.8,4.0354327]
[1753343271977,0.04,3578.9,3578.8,1.2412]
[1753343272307,0.04,3578.9,3578.8,5.6292]
[1753343272509,0.04,3578.9,3578.8,1.2412]
[1753343272680,0.32360097,3578.9,3578.8,4.388]
[1753343274207,0.32360097,3578.9,3578.8,4.8569]
[1753343274615,0.04,3578.9,3578.8,4.8569]
[1753343274774,0.04,3578.9,3578.8,0.4689]
[1753343274975,0.04,3578.9,3578.8,4.388]
[1753343274976,2.83415462,3578.9,3578.8,4.388]
[1753343275179,0.04,3578.9,3578.8,4.388]
[1753343275591,0.04,3578.9,3578.8,7.6511327]
[1753343275892,0.04,3578.9,3578.8,8.4463327]
[1753343278518,0.04,3578.9,3578.8,8.5863327]
[1753343280210,0.04,3578.9,3578.8,4.1983327]
[1753343280417,0.04,3578.9,3578.8,8.5853327]
[1753343281020,0.042,3578.9,3578.8,8.5853327]
[1753343281219,0.042,3578.9,3578.8,4.1983327]
[1753343281417,0.042,3578.9,3578.8,8.5853327]
[1753343281599,0.042,3578.9,3578.8,4.1983327]
[1753343281998,0.042,3578.9,3578.8,4.387]
[1753343282305,0.182,3578.9,3578.8,4.387]
[1753343282819,0.042,3578.9,3578.8,7.6501327]
[1753343283624,0.042,3578.9,3578.8,8.4488327]
[1753343287926,0.042,3578.9,3578.8,4.0618327]
[1753343288096,0.042,3578.9,3578.8,8.47577502]
[1753343288302,0.042,3578.9,3578.8,4.0618327]
[1753343288630,0.042,3578.9,3578.8,8.47577502]
[1753343288817,0.042,3578.9,3578.8,8.4478327]
[1753343297857,0.042,3578.9,3578.8,11.4478327]
[1753343298862,0.042,3578.9,3578.8,4.0618327]
[1753343299267,0.042,3578.9,3578.8,7.9779327]
[1753343299833,0.042,3578.9,3578.8,8.4490327]
[1753343302995,0.002,3579.0,3578.9,3.54935462]
[1753343302996,1e-08,3579.0,3578.9,3.54935462]
[1753343303198,1e-08,3579.0,3578.9,7.04839616]
[1753343303383,1e-08,3579.0,3578.9,7.02045462]
[1753343304771,1e-08,3579.0,3578.9,11.40545462]
[1753343306235,0.04,3579.9,3579.4,2.79376431]
[1753343306382,0.04,3579.9,3579.8,2.79345214]
[1753343306708,0.04,3579.9,3579.8,7.17745214]
[1753343307219,0.04,3579.9,3579.8,7.64855214]
[1753343308204,0.04,3579.9,3579.8,8.42545214]
[1753343309631,0.04,3579.9,3579.8,8.63175145]
[1753343311621,0.04,3579.9,3579.5,0.7858]
[1753343311825,0.04,3579.9,3579.4,4.71]
[1753343312006,0.04,3579.9,3579.5,4.383]
[1753343312206,0.04,3579.9,3579.8,2.79345214]
[1753343312436,0.04,3579.9,3579.8,7.99018666]
[1753343312642,0.04,3579.9,3579.8,7.96225214]
[1753343312941,0.04,3579.9,3579.8,8.43335214]
[1753343313339,0.04,3579.9,3579.8,7.96225214]
[1753343314028,0.04,3579.9,3579.8,7.96125214]
[1753343314401,0.04,3579.9,3579.8,2.79345214]
[1753343314612,0.04,3579.9,3579.8,7.17545214]
[1753343314812,0.04,3579.9,3579.8,2.79345214]
[1753343315137,0.04,3579.9,3579.8,7.17545214]
[1753343316442,0.04,3579.9,3579.8,7.31545214]
[1753343316905,0.04,3579.9,3579.8,7.78655214]
[1753343317312,0.04,3579.9,3579.8,4.522]
[1753343317715,0.04,3579.9,3579.8,7.31545214]
[1753343318044,0.04,3579.9,3579.8,4.522]
[1753343319443,0.04,3579.9,3579.8,7.31545214]
[1753343322072,0.04,3579.9,3579.8,0.14]
[1753343322389,0.04,3579.9,3579.8,4.521]
[1753343322750,1.2923,3579.9,3579.8,4.521]
[1753343323137,0.8611,3579.9,3579.8,7.31445214]
[1753343323442,0.8611,3579.9,3579.8,4.521]
[1753343323443,0.04,3579.9,3579.8,4.521]
[1753343323637,0.04,3579.9,3579.8,0.14]
[1753343323846,0.4712,3579.9,3579.8,4.518571]
[1753343324434,3.26457411,3579.9,3579.8,0.138571]
[1753343324632,3.67332793,3579.9,3579.8,4.382]
[1753343324864,3.67532793,3579.9,3579.8,0.001]
[1753343325030,4.47762793,3579.9,3579.8,0.001]
[1753343325233,5.02762793,3579.9,3579.8,0.001]
[1753343326738,8.02762793,3579.9,3579.8,0.001]
[1753343327135,8.28890816,3579.9,3579.8,0.001]
[1753343327899,2.79451911,3578.5,3578.3,6.711]
[1753343328101,2.79451911,3578.5,3578.4,4.381]
[1753343328815,3.08201911,3578.5,3578.4,4.381]
[1753343328964,0.2875,3578.5,3578.4,4.38]
[1753343329168,0.14,3578.6,3578.4,4.38]
[1753343329370,0.79768419,3578.6,3578.4,4.38]
[1753343329698,0.79768419,3578.6,3578.3,0.001]
[1753343329902,0.79768419,3578.6,3578.5,4.38]
[1753343330101,3.55,3579.3,3578.5,4.38]
[1753343330102,0.7634,3579.2,3578.5,4.8418]
[1753343330299,0.14,3579.1,3578.8,2.79419426]
[1753343330505,0.7914,3579.5,3578.9,4.38]
[1753343330704,0.7914,3579.8,3579.2,2.79386959]
[1753343331002,0.7914,3579.8,3579.4,2.79376431]
[1753343331306,0.43318681,3579.7,3579.3,4.381]
[1753343331765,1.371,3579.6,3578.5,0.7952]
[1753343331966,0.55,3579.3,3578.6,4.381]
[1753343332206,0.55,3579.3,3578.5,2.79441993]
[1753343332207,2.79392042,3579.2,3578.5,2.79441993]
[1753343332396,2.79401558,3579.1,3578.6,4.381]
[1753343332614,0.7596,3578.8,3578.7,4.381]
[1753343332818,2.79434477,3578.7,3578.3,0.001]
[1753343333027,2.7943972,3578.6,3578.3,0.001]
[1753343333226,2.79454504,3578.4,3578.3,0.001]
[1753343333390,3.62174504,3578.4,3578.3,0.001]
[1753343333591,4.73767989,3578.4,3578.3,0.001]
[1753343335495,8.28767989,3578.4,3578.3,0.001]
[1753343337989,7.02927989,3578.4,3578.3,0.001]
[1753343338525,7.46047989,3578.4,3578.3,0.001]
[1753343340621,7.60047989,3578.4,3578.3,0.001]
[1753343341951,8.36627989,3578.4,3578.3,0.001]
[1753343342155,12.74627989,3578.4,3578.3,0.001]
[1753343342861,12.74627989,3578.4,3577.9,0.001]
[1753343342862,4.12365746,3578.0,3577.9,0.001]
[1753343343029,11.64365746,3578.0,3577.9,0.001]
[1753343343230,12.07485746,3578.0,3577.9,0.001]
[1753343343827,12.07485746,3578.0,3577.9,1e-08]
[1753343344226,4.1716825,3577.2,3577.1,0.04]
[1753343344582,9.24838991,3577.2,3577.1,0.04]
[1753343344731,9.81958991,3577.2,3577.1,0.04]
[1753343346442,6.59290741,3577.2,3577.1,0.04]
[1753343346650,9.38838991,3577.2,3577.1,0.04]
[1753343347244,9.84138991,3577.2,3577.1,0.04]
[1753343347853,7.04590741,3577.2,3577.1,0.04]
[1753343348043,2.21290741,3577.2,3577.1,0.04]
[1753343348237,9.38838991,3577.2,3577.1,0.04]
[1753343348665,2.21290741,3577.2,3577.1,0.04]
[1753343348859,6.59290741,3577.2,3577.1,0.04]
[1753343349061,9.38838991,3577.2,3577.1,0.04]
[1753343349569,6.59290741,3577.2,3577.1,0.04]
[1753343349773,9.38838991,3577.2,3577.1,0.04]
[1753343350542,9.84138991,3577.2,3577.1,0.04]
[1753343354186,12.84138991,3577.2,3577.1,0.04]
[1753343355089,3.3456388,3577.0,3576.9,0.001]
[1753343355388,11.6620388,3577.0,3576.9,0.001]
[1753343355687,12.37525958,3577.0,3576.9,0.001]
[1753343355874,12.37525956,3577.0,3576.9,0.001]
[1753343357190,12.53148103,3577.0,3576.9,0.001]
[1753343357390,14.29021531,3577.0,3576.3,0.001]
[1753343357552,4.24410781,3576.4,3576.3,0.001]
[1753343357775,11.62310781,3576.4,3576.3,0.001]
[1753343358006,12.33632857,3576.4,3576.3,0.001]
[1753343358717,12.33632857,3576.4,3576.3,1e-08]
[1753343359019,14.82879259,3576.4,3576.3,1e-08]
[1753343361580,14.56851795,3576.4,3576.3,1e-08]
[1753343361894,14.82872062,3576.4,3576.3,1e-08]
[1753343365116,15.24901662,3576.2,3576.1,1e-08]
[1753343365315,20.18434089,3576.2,3576.1,1e-08]
[1753343365494,23.21431461,3576.2,3576.1,1e-08]
[1753343365879,10.28846218,3576.2,3576.1,1e-08]
[1753343366084,12.54348846,3576.2,3576.1,1e-08]
[1753343367814,7.71148846,3576.2,3576.1,1e-08]
[1753343368114,12.09048846,3576.2,3576.1,1e-08]
[1753343368886,12.54348846,3576.2,3576.1,1e-08]
[1753343370384,12.54380524,3576.2,3576.1,1e-08]
[1753343370586,14.88718179,3576.2,3576.1,1e-08]
[1753343370986,15.48739858,3576.2,3576.1,1e-08]
[1753343371619,15.48750425,3576.2,3576.1,1e-08]
[1753343373327,15.22703755,3576.2,3576.1,1e-08]
[1753343373487,15.22703755,3576.2,3575.4,0.001]
[1753343373488,7.16661163,3575.5,3575.4,0.001]
[1753343373693,11.96147659,3575.5,3575.4,0.001]
[1753343374026,12.55447659,3575.5,3575.4,0.001]
[1753343374235,12.55447659,3575.5,3575.4,1e-08]
[1753343374428,12.55447659,3575.5,3574.6,0.001]
[1753343374429,0.55,3574.0,3573.4,0.8009]
[1753343374632,3.801,3575.3,3573.8,2.79807772]
[1753343374633,4.378,3574.3,3573.8,2.79807772]
[1753343374839,3.55,3574.9,3572.8,3.0]
[1753343374840,0.14,3574.2,3573.9,0.8009]
[1753343375435,2.93790235,3574.2,3573.9,0.8009]
[1753343375594,0.14,3574.2,3573.9,0.8009]
[1753343376410,0.14,3574.2,3574.1,3.56970716]
[1753343376723,0.14,3574.6,3574.4,0.8208]
[1753343376924,4.378,3574.9,3574.5,0.4543]
[1753343377124,0.14,3574.8,3574.6,0.8208]
[1753343377497,0.14,3574.8,3574.7,0.4457]
[1753343378712,2.93735929,3574.8,3574.7,0.4457]
[1753343378906,0.14,3574.8,3574.7,0.4457]
[1753343379313,2.93735929,3574.8,3574.7,0.4457]
[1753343379618,2.79743754,3574.7,3574.6,0.8208]
[1753343379823,2.79743754,3574.7,3574.3,1.2442]
[1753343380028,3.48767233,3574.4,3574.3,0.7985]
[1753343380327,2.79820866,3573.8,3573.6,0.7985]
[1753343380508,2.79820866,3573.8,3573.6,1.2442]
[1753343380709,0.14,3573.8,3573.7,0.4457]
[1753343383245,0.14,3573.8,3573.6,0.7985]
[1753343383420,2.93819224,3573.8,3573.6,0.7985]
[1753343383626,2.79822033,3573.7,3573.6,0.7985]
[1753343383846,0.14,3573.8,3573.6,0.7985]
[1753343384037,0.14,3573.8,3573.6,1.2442]
[1753343384744,0.14,3573.8,3573.6,0.7985]
[1753343384946,0.14,3573.8,3573.6,1.2442]
[1753343385323,0.14,3573.8,3573.7,0.4457]
[1753343387935,2.93819593,3573.8,3573.3,0.7616]
[1753343388135,2.79827095,3573.7,3573.3,1.2073]
[1753343388867,2.93816858,3573.8,3573.3,1.2073]
[1753343389072,0.14,3573.8,3573.3,1.2073]
[1753343389278,2.93814843,3573.8,3573.4,0.4457]
[1753343390074,2.7982314,3573.7,3573.4,0.4457]
[1753343390372,2.79816765,3573.8,3573.4,0.4457]
[1753343390572,0.14,3573.6,3573.3,0.7616]
[1753343390797,0.14,3573.4,3573.3,3.56013237]
[1753343390978,4.377,3573.9,3573.4,2.79840163]
[1753343391144,0.14,3573.7,3573.3,3.5601247]
[1753343391482,0.14,3573.7,3573.3,0.7626]
[1753343391668,0.14,3573.5,3573.4,0.4457]
[1753343392241,0.14,3573.5,3573.3,0.7626]
[1753343392436,2.93842461,3573.5,3573.3,1.2083]
[1753343392677,0.14,3573.5,3573.3,0.7626]
[1753343392947,2.93842618,3573.5,3573.3,0.7626]
[1753343393475,2.79845525,3573.4,3573.3,0.7626]
[1753343394372,2.79845525,3573.4,3573.3,0.001]
[1753343395169,3.92213088,3573.4,3573.3,0.001]
[1753343395745,4.38263088,3573.4,3573.3,0.001]
[1753343396543,3.92213088,3573.4,3573.3,0.001]
[1753343398244,4.38263088,3573.4,3573.3,0.001]
[1753343398881,4.516,3573.5,3573.3,0.001]
[1753343398882,0.14,3573.5,3573.3,4.00328466]
[1753343399063,0.14,3573.7,3573.3,3.55758466]
[1753343399263,0.14,3573.7,3573.4,0.4457]
[1753343399436,0.14,3573.7,3573.5,0.4457]
[1753343399977,0.14,3573.7,3573.3,3.55757643]
[1753343399978,0.14,3573.7,3573.6,0.4457]
[1753343400299,0.41830496,3574.0,3573.9,2.7979969]
[1753343400489,0.14,3574.2,3574.1,3.54940716]
[1753343400643,0.41829696,3575.0,3574.8,2.79734976]
[1753343400837,0.14,3574.9,3574.8,3.54885929]
[1753343401140,0.14,3575.2,3574.9,2.79727681]
[1753343401351,0.14,3575.2,3574.9,0.4457]
[1753343401545,0.14,3575.2,3575.0,3.24286447]
[1753343401744,0.14,3575.2,3575.1,0.4457]
[1753343402352,0.14,3575.2,3574.8,0.7515]
[1753343402549,0.14,3575.2,3575.0,2.79716425]
[1753343402864,0.14,3575.2,3575.1,0.4457]
[1753343403065,0.14,3575.2,3574.8,0.7515]
[1753343403455,0.14,3575.2,3574.9,0.4457]
[1753343403852,0.14,3575.2,3574.8,0.7515]
[1753343404090,0.14,3575.0,3574.8,0.7515]
[1753343404698,0.14,3575.0,3574.9,3.24298104]
[1753343404996,0.4605,3576.4,3575.2,2.7969806]
[1753343405183,0.14,3575.5,3575.3,2.79689296]
[1753343405491,0.14,3575.5,3575.4,0.4457]
[1753343405996,0.14,3575.5,3575.4,3.24258985]
[1753343406179,0.14,3575.5,3575.4,4.02598985]
[1753343406382,0.04,3575.9,3575.8,2.79657698]
[1753343406595,0.04,3575.9,3575.8,3.57997698]
[1753343406975,0.04,3575.9,3575.8,4.02567698]
[1753343407172,0.04,3575.9,3575.8,4.05364274]
[1753343408060,0.04,3575.9,3575.8,7.05364274]
[1753343408394,0.002,3576.2,3576.1,3.54684238]
[1753343408696,0.002,3576.2,3576.1,3.5748058]
[1753343408998,0.002,3576.2,3576.1,4.1868058]
[1753343409572,0.002,3576.2,3576.1,8.53184238]
[1753343411003,0.002,3576.2,3576.1,4.15884238]
[1753343411177,0.002,3576.2,3576.1,8.5588058]
[1753343411366,0.002,3576.2,3576.1,8.53084238]
[1753343411574,0.002,3576.2,3576.1,11.53084238]
[1753343413077,0.002,3576.2,3576.1,8.52984238]
[1753343413593,0.002,3576.2,3576.1,5.7335]
[1753343413793,0.002,3576.2,3576.1,1.3625]
[1753343414099,0.002,3576.2,3576.1,8.52984238]
[1753343414466,0.002,3576.2,3576.1,5.7335]
[1753343414693,0.002,3576.2,3575.7,0.7959]
[1753343414879,0.142,3576.2,3575.8,4.371]
[1753343415202,0.002,3576.2,3576.1,2.93634238]
[1753343415382,0.002,3576.2,3576.1,7.30734238]
[1753343415579,0.002,3576.2,3576.1,7.77934238]
[1753343415900,0.002,3576.2,3575.9,0.7959]
[1753343416204,0.142,3576.2,3576.0,4.371]
[1753343416771,0.002,3576.2,3576.1,4.0857058]
[1753343418803,0.002,3576.2,3576.1,4.05774238]
[1753343419901,0.002,3576.2,3576.1,8.42774238]
[1753343420096,0.002,3576.2,3576.1,7.95574238]
[1753343420505,0.002,3576.2,3576.1,5.1594]
[1753343420669,0.002,3576.2,3576.1,0.7894]
[1753343420874,0.002,3576.2,3576.1,5.1594]
[1753343421205,0.002,3576.2,3576.1,8.42774238]
[1753343422495,0.002,3576.2,3576.1,7.95574238]
[1753343422670,0.002,3576.2,3576.1,3.58574238]
[1753343422866,0.002,3576.2,3576.1,7.95574238]
[1753343423204,0.002,3576.2,3575.9,2.79647841]
[1753343423373,0.002,3576.2,3576.0,4.37]
[1753343425266,2.79634238,3576.1,3576.0,4.37]
[1753343425469,2.79642401,3576.0,3575.9,4.369]
[1753343425669,3.23282401,3576.0,3575.9,4.369]
[1753343426703,0.40129936,3576.2,3575.9,4.369]
[1753343426907,0.14,3576.0,3575.9,4.369]
[1753343428403,0.002,3576.2,3576.1,2.79634238]
[1753343428588,0.002,3576.2,3576.1,7.16534238]
[1753343428996,0.002,3576.2,3576.1,7.63734238]
[1753343435615,0.002,3576.2,3576.1,3.26834238]
[1753343436151,0.002,3576.2,3576.1,7.63634238]
[1753343437755,0.002,3576.2,3576.1,8.41624238]
[1753343439100,0.04,3576.9,3576.8,3.55649512]
[1753343439304,0.04,3576.9,3576.8,7.95145307]
[1753343439505,0.04,3576.9,3576.8,8.06349512]
[1753343439805,0.04,3576.9,3576.8,11.53379512]
[1753343443169,0.002,3577.7,3577.6,3.57196994]
[1753343443337,0.002,3577.7,3577.6,16.03182237]
[1753343443662,1e-08,3577.7,3577.6,19.50212237]
[1753343444068,1e-08,3577.8,3577.7,2.79509181]
[1753343444269,1e-08,3577.8,3577.7,4.04334272]
[1753343444742,1e-08,3577.9,3577.8,2.79501369]
[1753343444943,1e-08,3577.9,3577.8,8.42991369]
[1753343445144,1e-08,3577.9,3577.8,11.42991369]
[1753343447593,1e-08,3577.9,3577.8,11.42891369]
[1753343448011,1e-08,3577.9,3577.8,7.06391369]
[1753343448292,1e-08,3577.9,3577.8,8.42891369]
[1753343448793,1e-08,3577.9,3577.8,11.42891369]
[1753343451359,1e-08,3577.9,3577.8,6.59361369]
[1753343451565,1e-08,3577.9,3577.8,10.95761369]
[1753343451760,1e-08,3577.9,3577.8,5.79501369]
[1753343451961,1e-08,3577.9,3577.8,10.15901369]
[1753343452298,1e-08,3577.9,3577.8,10.62931369]
[1753343452484,1e-08,3577.9,3577.8,11.43991369]
[1753343453092,1e-08,3577.9,3577.8,11.57991369]
[1753343455805,1e-08,3577.9,3577.8,11.10961369]
[1753343456011,1e-08,3577.9,3577.8,6.74561369]
[1753343456211,1e-08,3577.9,3577.8,11.10861369]
[1753343457144,1e-08,3577.9,3577.8,10.29801369]
[1753343458046,1e-08,3577.9,3577.8,5.93601369]
[1753343458351,0.00200001,3577.9,3577.8,10.29901369]
[1753343458517,0.00200001,3577.9,3577.8,10.76931369]
[1753343458903,0.00200001,3577.9,3577.8,11.57931369]
[1753343461431,0.00200001,3577.9,3577.8,6.74601369]
[1753343461636,1e-08,3577.9,3577.8,24.38316612]
[1753343461835,0.4661,3580.2,3579.3,3.62354237]
[1753343462040,0.4661,3580.2,3579.3,10.98654237]
[1753343462336,0.4661,3580.2,3579.3,11.59684237]
[1753343462918,0.4661,3580.2,3579.3,11.80729517]
[1753343464031,0.002,3580.2,3579.3,11.33699517]
[1753343464346,1e-08,3579.4,3579.3,19.9011476]
[1753343465306,0.002,3580.2,3579.3,19.9011476]
[1753343465307,1e-08,3579.9,3579.8,3.62015214]
[1753343465507,1e-08,3579.9,3579.8,19.21600457]
[1753343465811,1e-08,3579.9,3579.8,19.68630457]
[1753343466247,1e-08,3580.2,3580.1,3.60831806]
[1753343466541,0.002,3580.7,3580.6,6.57282801]
[1753343466740,0.002,3580.7,3580.6,10.93382801]
[1753343466906,0.002,3580.7,3580.6,11.07382801]
[1753343467107,0.002,3580.7,3580.6,11.53682801]
[1753343467742,0.002,3580.7,3580.6,11.07382801]
[1753343468047,0.002,3580.7,3580.6,6.71282801]
[1753343468270,0.002,3580.7,3580.6,11.07382801]
[1753343468411,0.002,3580.7,3580.6,11.53682801]
[1753343468846,0.002,3580.7,3580.6,11.7412938]
[1753343471325,0.002,3580.7,3580.6,11.2772938]
[1753343472284,0.002,3580.7,3580.6,11.2762938]
[1753343475076,0.002,3580.7,3580.6,11.7392938]
[1753343476941,0.002,3580.7,3580.6,11.2762938]
[1753343477250,1e-08,3580.7,3580.6,11.7392938]
[1753343477960,1e-08,3580.9,3580.8,2.79267202]
[1753343478160,1e-08,3580.9,3580.8,8.07439874]
[1753343478372,1e-08,3580.9,3580.8,8.50947202]
[1753343482678,1e-08,3580.9,3580.8,11.04547202]
[1753343483008,1e-08,3580.9,3580.8,11.50847202]
[1753343484289,0.002,3581.4,3581.3,2.79228213]
[1753343484495,0.002,3581.4,3581.3,7.28928213]
[1753343485197,1e-08,3581.5,3581.4,5.79220416]
[1753343485506,1e-08,3581.5,3581.4,6.25520416]
[1753343486479,1e-08,3581.5,3581.4,6.54720416]
[1753343486677,1e-08,3581.5,3581.4,7.01020416]
[1753343488088,1e-08,3581.5,3581.4,11.36620416]
[1753343491086,0.00200001,3581.9,3581.8,6.54419234]
[1753343491294,0.00200001,3581.9,3581.8,10.89919234]
[1753343491486,0.00200001,3581.9,3581.8,11.36219234]
[1753343491685,1e-08,3581.9,3581.8,11.36219234]
[1753343491973,1e-08,3582.9,3582.8,2.79111309]
[1753343492178,1e-08,3582.9,3582.3,0.8083]
[1753343492522,1.2527,3582.8,3582.5,5.79134682]
[1753343492729,0.4663,3582.7,3582.6,4.355]
[1753343493429,0.4663,3582.7,3582.3,2.79142915]
[1753343493580,0.4663,3582.7,3582.4,4.355]
[1753343493783,0.4663,3582.7,3582.4,7.14641346]
[1753343494124,0.7864,3582.8,3582.2,6.704]
[1753343494343,0.4663,3582.6,3582.5,2.79134682]
[1753343494489,0.4663,3582.6,3582.5,7.14634682]
[1753343495137,0.4663,3582.6,3582.5,7.28554682]
[1753343495609,0.4663,3582.6,3582.5,2.93054682]
[1753343495809,0.4663,3582.6,3582.5,7.28454682]
[1753343496196,0.4663,3582.6,3582.5,4.4932]
[1753343496622,0.4663,3582.6,3582.5,0.1392]
[1753343496811,0.4663,3582.6,3582.5,4.4932]
[1753343497246,0.4663,3582.6,3582.5,7.28454682]
[1753343497749,0.7864,3582.8,3582.7,2.791191]
[1753343498071,1e-08,3582.9,3582.7,7.14516478]
[1753343498245,1e-08,3582.9,3582.7,4.354]
[1753343498546,1e-08,3582.9,3582.8,4.354]
[1753343499124,0.43950001,3582.9,3582.8,7.14511309]
[1753343499601,0.43950001,3582.9,3582.8,7.28431309]
[1753343500928,0.43950001,3582.9,3582.8,4.4932]
[1753343501317,0.43950001,3582.9,3582.8,7.28431309]
[1753343501654,0.43950001,3582.9,3582.8,0.1392]
[1753343501867,0.43950001,3582.9,3582.8,7.28331309]
[1753343502267,0.43950001,3582.9,3582.8,4.4922]
[1753343502927,0.43950001,3582.9,3582.8,4.353]
[1753343503121,3.92581979,3582.9,3582.8,4.353]
[1753343503527,1.1347846,3582.9,3582.8,4.353]
[1753343503727,0.43950001,3582.9,3582.6,0.1392]
[1753343503958,0.43950001,3582.9,3582.7,4.353]
[1753343504446,0.43950001,3582.9,3582.6,0.1392]
[1753343504655,0.43950001,3582.9,3582.7,4.353]
[1753343505750,0.43950001,3582.9,3582.8,4.353]
[1753343506257,0.43950001,3582.9,3582.6,0.1392]
[1753343506461,0.43950001,3582.9,3582.8,4.353]
[1753343507033,0.43950001,3582.9,3582.6,0.1392]
[1753343507240,0.43950001,3582.9,3582.8,4.352]
[1753343509057,0.43950001,3582.9,3582.8,7.14311309]
[1753343509371,0.43950001,3582.9,3582.8,4.352]
[1753343510246,0.43950001,3582.9,3582.6,2.93046115]
[1753343510581,0.43950001,3582.9,3582.6,0.1392]
[1753343510741,0.7783,3582.7,3582.3,2.79149337]
[1753343510941,3.62376694,3582.5,3582.4,4.352]
[1753343511137,1.2719,3582.5,3582.2,9.495562]
[1753343511371,0.4395,3582.4,3582.3,4.352]
[1753343512550,0.4395,3582.4,3582.2,6.704]
[1753343512875,3.93035284,3582.4,3581.7,2.79191468]
[1753343513178,0.4395,3582.3,3581.9,0.1392]
[1753343513374,0.4395,3582.3,3582.0,4.352]
[1753343513538,0.4395,3582.2,3582.0,4.352]